[Event "Skol-SM i Schack 2024, Grupp A"]
[Site "Arena Varberg, Kattegattsvagen 26, Varberg, Sweden"]
[Date "2024.10.13"]
[Round "7.5"]
[White "Emanuelsson, Aron"]
[Black "Schriever-Abeln, Marius"]
[Result "0-1"]
[TimeControl "45 minutes + 10 seconds per move from move one."]
[WhiteFideId "1780069"]
[BlackFideId "1752650"]
[WhiteElo "1720"]
[BlackElo "2009"]

1. d4 {[%clk 00:44:19]} {[%emt 00:01:00]} Nf6 {[%clk 00:45:16]} {[%emt
00:00:04]} 2. Bf4 {[%clk 00:44:26]} {[%emt 00:00:03]} d5 {[%clk 00:45:22]}
{[%emt 00:00:05]} 3. e3 {[%clk 00:44:35]} {[%emt 00:00:01]} c5 {[%clk
00:45:29]} {[%emt 00:00:03]} 4. c3 {[%clk 00:44:43]} {[%emt 00:00:01]} Nc6
{[%clk 00:45:36]} {[%emt 00:00:03]} 5. Nd2 {[%clk 00:44:51]} {[%emt 00:00:03]}
Bf5 {[%clk 00:45:29]} {[%emt 00:00:17]} 6. Ngf3 {[%clk 00:44:58]} {[%emt
00:00:03]} e6 {[%clk 00:45:00]} {[%emt 00:00:39]} 7. h3 {[%clk 00:44:10]}
{[%emt 00:00:57]} Be7 {[%clk 00:44:03]} {[%emt 00:01:07]} 8. Nh4 {[%clk
00:42:38]} {[%emt 00:01:42]} Be4 {[%clk 00:42:44]} {[%emt 00:01:29]} 9. Nxe4
{[%clk 00:39:44]} {[%emt 00:03:04]} Nxe4 {[%clk 00:42:48]} {[%emt 00:00:07]} 10.
Nf3 {[%clk 00:39:41]} {[%emt 00:00:13]} O-O {[%clk 00:38:39]} {[%emt 00:04:19]}
11. Bd3 {[%clk 00:39:49]} {[%emt 00:00:01]} f5 {[%clk 00:37:21]} {[%emt
00:01:28]} 12. Qe2 {[%clk 00:36:57]} {[%emt 00:03:02]} c4 {[%clk 00:32:10]}
{[%emt 00:05:21]} 13. Bxe4 {[%clk 00:35:09]} {[%emt 00:01:58]} fxe4 {[%clk
00:32:10]} {[%emt 00:00:11]} 14. Ne5 {[%clk 00:34:58]} {[%emt 00:00:21]} Bd6
{[%clk 00:22:35]} {[%emt 00:09:45]} 15. Nxc6 {[%clk 00:35:05]} {[%emt
00:00:03]} bxc6 {[%clk 00:22:43]} {[%emt 00:00:02]} 16. Bxd6 {[%clk 00:35:13]}
{[%emt 00:00:01]} Qxd6 {[%clk 00:22:53]} {[%emt 00:00:01]} 17. O-O {[%clk
00:35:07]} {[%emt 00:00:16]} Rab8 {[%clk 00:22:13]} {[%emt 00:00:50]} 18. Rad1
{[%clk 00:34:21]} {[%emt 00:00:55]} Rb7 {[%clk 00:20:28]} {[%emt 00:01:56]} 19.
Rd2 {[%clk 00:34:04]} {[%emt 00:00:26]} Rfb8 {[%clk 00:20:25]} {[%emt
00:00:14]} 20. f3 {[%clk 00:34:03]} {[%emt 00:00:11]} exf3 {[%clk 00:19:59]}
{[%emt 00:00:36]} 21. Rxf3 {[%clk 00:34:08]} {[%emt 00:00:04]} a5 {[%clk
00:19:36]} {[%emt 00:00:34]} 22. Rf2 {[%clk 00:33:11]} {[%emt 00:01:06]} a4
{[%clk 00:19:00]} {[%emt 00:00:47]} 23. a3 {[%clk 00:33:16]} {[%emt 00:00:05]}
e5 {[%clk 00:18:02]} {[%emt 00:01:07]} 24. dxe5 {[%clk 00:29:49]} {[%emt
00:03:37]} Qxe5 {[%clk 00:17:32]} {[%emt 00:00:41]} 25. e4 {[%clk 00:28:48]}
{[%emt 00:01:10]} Qxe4 {[%clk 00:14:31]} {[%emt 00:03:12]} 26. Qxe4 {[%clk
00:28:53]} {[%emt 00:00:05]} dxe4 {[%clk 00:14:40]} 27. Kf1 e3 {[%clk
00:14:40]} 0-1

[Event "Skol-SM i Schack 2024, Grupp A"]
[Site "Arena Varberg, Kattegattsvagen 26, Varberg, Sweden"]
[Date "2024.10.13"]
[Round "8.9"]
[White "Walter, Fridolf"]
[Black "Fredlund, Joel"]
[Result "1-0"]
[TimeControl "45 minutes + 10 seconds per move from move one."]
[WhiteFideId "1753347"]
[BlackFideId "1748157"]
[WhiteElo "1708"]
[BlackElo "1454"]

1. e4 {[%clk 00:45:17]} {[%emt 00:00:02]} e5 {[%clk 00:45:14]} {[%emt
00:00:06]} 2. Nf3 {[%clk 00:45:22]} {[%emt 00:00:05]} Nc6 {[%clk 00:45:20]}
{[%emt 00:00:05]} 3. Bc4 {[%clk 00:45:24]} {[%emt 00:00:08]} Nf6 {[%clk
00:45:10]} {[%emt 00:00:20]} 4. d3 {[%clk 00:45:02]} {[%emt 00:00:32]} h6
{[%clk 00:44:50]} {[%emt 00:00:30]} 5. Nc3 {[%clk 00:44:44]} {[%emt 00:00:28]}
Bb4 {[%clk 00:44:16]} {[%emt 00:00:44]} 6. O-O {[%clk 00:44:07]} {[%emt
00:00:46]} d6 {[%clk 00:43:27]} {[%emt 00:00:59]} 7. Nd2 {[%clk 00:41:07]}
{[%emt 00:03:09]} Ng4 {[%clk 00:41:36]} {[%emt 00:02:03]} 8. Qf3 {[%clk
00:35:48]} {[%emt 00:05:28]} O-O {[%clk 00:39:30]} {[%emt 00:02:16]} 9. Nd5
{[%clk 00:34:30]} {[%emt 00:01:28]} Nd4 {[%clk 00:37:58]} {[%emt 00:01:43]} 10.
Qd1 {[%clk 00:33:54]} {[%emt 00:00:45]} Bc5 {[%clk 00:35:39]} {[%emt 00:02:30]}
11. c3 {[%clk 00:27:27]} {[%emt 00:06:37]} Nc2 {[%clk 00:21:03]} {[%emt
00:14:46]} 12. Qxc2 {[%clk 00:25:27]} {[%emt 00:02:09]} Nxh2 {[%clk 00:13:56]}
{[%emt 00:07:17]} 13. Kxh2 {[%clk 00:25:08]} {[%emt 00:00:28]} Qh4+ {[%clk
00:13:27]} {[%emt 00:00:41]} 14. Kg1 {[%clk 00:25:08]} {[%emt 00:00:10]} Bh3
{[%clk 00:12:41]} {[%emt 00:00:56]} 15. Nf3 {[%clk 00:19:57]} {[%emt 00:05:19]}
Qg3 {[%clk 00:11:44]} {[%emt 00:01:08]} 16. Ne3 {[%clk 00:19:35]} {[%emt
00:00:32]} Bxe3 {[%clk 00:08:08]} {[%emt 00:03:46]} 17. fxe3 {[%clk 00:19:34]}
{[%emt 00:00:10]} Qg6 {[%clk 00:06:13]} {[%emt 00:02:06]} 18. Qf2 {[%clk
00:18:50]} {[%emt 00:00:54]} 1-0

[Event "Skol-SM i Schack 2024, Grupp A"]
[Site "Arena Varberg, Kattegattsvagen 26, Varberg, Sweden"]
[Date "2024.10.13"]
[Round "7.6"]
[White "Harlin, Jacob"]
[Black "Walter, Fridolf"]
[Result "1-0"]
[TimeControl "45 minutes + 10 seconds per move from move one."]
[WhiteFideId "1728180"]
[BlackFideId "1753347"]
[WhiteElo "1919"]
[BlackElo "1708"]

1. e4 {[%clk 00:42:27]} {[%emt 00:02:53]} e5 {[%clk 00:45:15]} {[%emt
00:00:05]} 2. Nf3 {[%clk 00:42:35]} {[%emt 00:00:02]} Nc6 {[%clk 00:45:17]}
{[%emt 00:00:08]} 3. d4 {[%clk 00:42:45]} {[%emt 00:00:01]} exd4 {[%clk
00:45:18]} {[%emt 00:00:08]} 4. Bc4 {[%clk 00:42:53]} {[%emt 00:00:01]} Nf6
{[%clk 00:45:13]} {[%emt 00:00:15]} 5. e5 {[%clk 00:43:03]} {[%emt 00:00:02]}
d5 {[%clk 00:45:09]} {[%emt 00:00:13]} 6. Bb5 {[%clk 00:43:12]} {[%emt
00:00:02]} Ne4 {[%clk 00:44:31]} {[%emt 00:00:46]} 7. Nxd4 {[%clk 00:43:19]}
{[%emt 00:00:03]} Bd7 {[%clk 00:44:09]} {[%emt 00:00:32]} 8. Bxc6 {[%clk
00:43:25]} {[%emt 00:00:04]} bxc6 {[%clk 00:44:07]} {[%emt 00:00:12]} 9. O-O
{[%clk 00:43:34]} {[%emt 00:00:02]} Bc5 {[%clk 00:43:42]} {[%emt 00:00:35]} 10.
f3 {[%clk 00:43:39]} {[%emt 00:00:05]} Ng5 {[%clk 00:43:37]} {[%emt 00:00:14]}
11. f4 {[%clk 00:43:48]} {[%emt 00:00:02]} Ne4 {[%clk 00:43:04]} {[%emt
00:00:43]} 12. Be3 {[%clk 00:43:57]} {[%emt 00:00:01]} O-O {[%clk 00:42:28]}
{[%emt 00:00:45]} 13. Nd2 {[%clk 00:44:06]} {[%emt 00:00:02]} Nxd2 {[%clk
00:42:07]} {[%emt 00:00:31]} 14. Qxd2 {[%clk 00:44:14]} Qe7 {[%clk 00:41:08]}
{[%emt 00:01:08]} 15. Nb3 {[%clk 00:38:56]} {[%emt 00:05:30]} Bb6 {[%clk
00:40:50]} {[%emt 00:00:28]} 16. Qc3 {[%clk 00:34:33]} {[%emt 00:04:33]} f6
{[%clk 00:36:23]} {[%emt 00:04:37]} 17. Kh1 {[%clk 00:21:12]} {[%emt 00:13:31]}
Rae8 {[%clk 00:27:59]} {[%emt 00:08:32]} 18. Bc5 {[%clk 00:20:40]} {[%emt
00:00:43]} Bxc5 {[%clk 00:27:55]} {[%emt 00:00:14]} 19. Nxc5 {[%clk 00:20:49]}
{[%emt 00:00:01]} fxe5 {[%clk 00:17:15]} {[%emt 00:10:49]} 20. fxe5 {[%clk
00:20:57]} {[%emt 00:00:02]} Bf5 {[%clk 00:14:17]} {[%emt 00:03:08]} 21. Rfe1
{[%clk 00:20:20]} {[%emt 00:00:48]} Bg6 {[%clk 00:12:02]} {[%emt 00:02:25]} 22.
Nd3 {[%clk 00:09:25]} {[%emt 00:11:05]} Bxd3 {[%clk 00:09:35]} {[%emt
00:02:37]} 23. cxd3 {[%clk 00:09:14]} {[%emt 00:00:21]} c5 {[%clk 00:05:52]}
{[%emt 00:03:53]} 24. Rac1 {[%clk 00:07:44]} {[%emt 00:01:39]} Rf5 {[%clk
00:05:16]} {[%emt 00:00:46]} 25. e6 {[%clk 00:07:48]} {[%emt 00:00:06]} Rf6
{[%clk 00:03:39]} {[%emt 00:01:47]} 26. Qxc5 {[%clk 00:04:50]} {[%emt
00:03:08]} Qxc5 {[%clk 00:03:12]} {[%emt 00:00:37]} 27. Rxc5 {[%clk 00:05:00]}
{[%emt 00:00:01]} Rexe6 {[%clk 00:01:44]} {[%emt 00:01:37]} 28. Rcc1 {[%clk
00:03:38]} {[%emt 00:01:32]} Rxe1+ {[%clk 00:01:42]} {[%emt 00:00:13]} 29. Rxe1
{[%clk 00:03:40]} {[%emt 00:00:08]} Rf2 {[%clk 00:01:16]} {[%emt 00:00:36]} 30.
h3 {[%clk 00:03:35]} {[%emt 00:00:15]} Rxb2 {[%emt 00:00:22]} 31. Re7 {[%clk
00:03:43]} Rc2 {[%clk 00:00:44]} {[%emt 00:00:31]} 32. Rd7 {[%clk 00:03:52]}
{[%emt 00:00:01]} Rc5 {[%clk 00:00:21]} {[%emt 00:00:33]} 33. d4 {[%clk
00:04:00]} {[%emt 00:00:03]} Ra5 {[%clk 00:00:28]} {[%emt 00:00:03]} 34. Rxc7
{[%clk 00:03:57]} {[%emt 00:00:13]} h6 {[%clk 00:00:22]} {[%emt 00:00:15]} 35.
Kh2 {[%clk 00:01:12]} {[%emt 00:02:55]} Rxa2 {[%clk 00:00:19]} {[%emt
00:00:14]} 36. Rc5 {[%clk 00:01:21]} {[%emt 00:00:01]} Kf7 {[%clk 00:00:24]}
{[%emt 00:00:05]} 37. Rxd5 {[%clk 00:01:30]} {[%emt 00:00:01]} Ke6 {[%clk
00:00:26]} {[%emt 00:00:07]} 38. Rb5 {[%clk 00:01:23]} {[%emt 00:00:18]} a5
{[%clk 00:00:25]} {[%emt 00:00:10]} 39. Kg3 {[%clk 00:00:43]} {[%emt 00:00:50]}
a4 {[%clk 00:00:21]} {[%emt 00:00:14]} 40. Ra5 {[%clk 00:00:53]} a3 {[%clk
00:00:23]} {[%emt 00:00:08]} 41. Kh4 {[%clk 00:00:16]} {[%emt 00:00:46]} Ra1
{[%clk 00:00:13]} {[%emt 00:00:20]} 42. Kh5 {[%clk 00:00:15]} {[%emt 00:00:12]}
a2 {[%clk 00:00:12]} {[%emt 00:00:11]} 43. Kg6 {[%clk 00:00:18]} {[%emt
00:00:07]} 1-0

[Event "Skol-SM i Schack 2024, Grupp A"]
[Site "Arena Varberg, Kattegattsvagen 26, Varberg, Sweden"]
[Date "2024.10.13"]
[Round "8.10"]
[White "Sniegon, Filip"]
[Black "Johansson, Sigge"]
[Result "0-1"]
[TimeControl "45 minutes + 10 seconds per move from move one."]
[WhiteFideId "1778277"]
[BlackFideId "1742612"]
[WhiteElo "1684"]
[BlackElo "1746"]

1. c4 {[%clk 00:45:16]} {[%emt 00:00:03]} g6 {[%clk 00:45:11]} {[%emt
00:00:09]} 2. g3 {[%clk 00:45:23]} {[%emt 00:00:03]} Bg7 {[%clk 00:45:13]}
{[%emt 00:00:08]} 3. Bg2 {[%clk 00:45:30]} {[%emt 00:00:03]} e6 {[%clk
00:45:11]} {[%emt 00:00:12]} 4. d4 {[%clk 00:45:17]} {[%emt 00:00:23]} d5
{[%clk 00:45:12]} {[%emt 00:00:08]} 5. cxd5 {[%clk 00:45:08]} {[%emt 00:00:20]}
exd5 {[%clk 00:45:10]} {[%emt 00:00:04]} 6. Nc3 {[%clk 00:45:16]} {[%emt
00:00:11]} Ne7 {[%clk 00:44:45]} {[%emt 00:00:34]} 7. Nf3 {[%clk 00:45:16]}
{[%emt 00:00:10]} O-O {[%clk 00:44:46]} {[%emt 00:00:09]} 8. O-O {[%clk
00:45:22]} {[%emt 00:00:04]} c6 {[%clk 00:44:38]} {[%emt 00:00:18]} 9. Bd2
{[%clk 00:44:59]} {[%emt 00:00:33]} Nf5 {[%clk 00:43:46]} {[%emt 00:01:02]} 10.
e3 {[%clk 00:44:43]} {[%emt 00:00:26]} Re8 {[%clk 00:43:28]} {[%emt 00:00:27]}
11. Re1 {[%clk 00:43:56]} {[%emt 00:00:57]} Be6 {[%clk 00:42:49]} {[%emt
00:00:50]} 12. Ne2 {[%clk 00:41:59]} {[%emt 00:02:08]} Nd6 {[%clk 00:41:58]}
{[%emt 00:00:59]} 13. Nf4 {[%clk 00:40:47]} {[%emt 00:01:23]} Bg4 {[%clk
00:41:27]} {[%emt 00:00:41]} 14. h3 {[%clk 00:39:54]} {[%emt 00:01:03]} Be6
{[%clk 00:39:53]} {[%emt 00:01:43]} 15. Nxe6 {[%clk 00:37:47]} {[%emt
00:02:18]} fxe6 {[%clk 00:39:43]} {[%emt 00:00:20]} 16. Bb4 {[%clk 00:37:05]}
{[%emt 00:00:52]} Bf8 {[%clk 00:36:41]} {[%emt 00:03:12]} 17. Rc1 {[%clk
00:34:35]} {[%emt 00:02:40]} Ne4 {[%clk 00:34:56]} {[%emt 00:01:55]} 18. Bxf8
{[%clk 00:33:49]} {[%emt 00:00:57]} Rxf8 {[%clk 00:35:01]} {[%emt 00:00:05]} 19.
Rf1 {[%clk 00:33:36]} {[%emt 00:00:22]} Nd7 {[%clk 00:34:49]} {[%emt 00:00:22]}
20. Qc2 {[%clk 00:33:02]} {[%emt 00:00:44]} Rf7 {[%clk 00:32:57]} {[%emt
00:02:01]} 21. Nd2 {[%clk 00:32:47]} {[%emt 00:00:26]} Nd6 {[%clk 00:31:47]}
{[%emt 00:01:20]} 22. b4 {[%clk 00:27:39]} {[%emt 00:05:19]} Nb6 {[%clk
00:28:30]} {[%emt 00:03:27]} 23. f4 {[%clk 00:25:58]} {[%emt 00:01:51]} Nbc4
{[%clk 00:28:12]} {[%emt 00:00:28]} 24. Nxc4 {[%clk 00:25:48]} {[%emt
00:00:20]} Nxc4 {[%clk 00:28:17]} {[%emt 00:00:05]} 25. Qd3 {[%clk 00:25:49]}
{[%emt 00:00:09]} Qb6 {[%clk 00:27:20]} {[%emt 00:01:07]} 26. a3 {[%clk
00:24:21]} {[%emt 00:01:38]} a5 {[%clk 00:27:01]} {[%emt 00:00:28]} 27. bxa5
{[%clk 00:23:06]} {[%emt 00:01:25]} Rxa5 {[%clk 00:26:40]} {[%emt 00:00:31]} 28.
Rc3 {[%clk 00:21:37]} {[%emt 00:01:39]} Qa6 {[%clk 00:25:57]} {[%emt 00:00:53]}
29. Ra1 {[%clk 00:21:00]} {[%emt 00:00:47]} b5 {[%clk 00:22:33]} {[%emt
00:03:35]} 30. Bf1 {[%clk 00:17:07]} {[%emt 00:04:03]} b4 {[%clk 00:20:55]}
{[%emt 00:01:47]} 31. Rb3 {[%clk 00:16:09]} {[%emt 00:01:08]} Rxa3 {[%clk
00:19:27]} {[%emt 00:01:39]} 32. Rbxa3 {[%clk 00:15:33]} {[%emt 00:00:46]} bxa3
{[%clk 00:19:18]} {[%emt 00:00:19]} 33. Qb3 {[%clk 00:14:37]} {[%emt 00:01:05]}
Ra7 {[%clk 00:18:33]} {[%emt 00:00:55]} 34. Bxc4 {[%clk 00:14:21]} {[%emt
00:00:27]} dxc4 {[%clk 00:18:40]} {[%emt 00:00:03]} 35. Qc3 {[%clk 00:14:19]}
{[%emt 00:00:12]} Qa4 {[%clk 00:17:29]} {[%emt 00:01:21]} 36. Qd2 {[%clk
00:11:59]} {[%emt 00:02:30]} Qb3 {[%clk 00:16:41]} {[%emt 00:00:55]} 37. Qc1
{[%clk 00:10:20]} {[%emt 00:01:51]} a2 {[%clk 00:15:51]} {[%emt 00:01:01]} 38.
Kf1 {[%clk 00:09:40]} {[%emt 00:00:50]} c3 {[%clk 00:15:58]} {[%emt 00:00:02]}
39. Ke1 {[%clk 00:09:32]} {[%emt 00:00:19]} Ra3 {[%clk 00:14:33]} {[%emt
00:01:35]} 40. Qd1 {[%clk 00:09:02]} {[%emt 00:00:40]} Qb2 {[%clk 00:11:40]}
{[%emt 00:03:02]} 0-1

[Event "Skol-SM i Schack 2024, Grupp A"]
[Site "Arena Varberg, Kattegattsvagen 26, Varberg, Sweden"]
[Date "2024.10.12"]
[Round "3.7"]
[White "Wedenberg, Oliver"]
[Black "Savela, Julina"]
[Result "1-0"]
[TimeControl "45 minutes + 10 seconds per move from move one."]
[WhiteFideId "1767909"]
[BlackFideId "1767437"]
[WhiteElo "1858"]
[BlackElo "1682"]

1. e4 {[%clk 00:45:15]} {[%emt 00:00:03]} c5 {[%clk 00:45:11]} {[%emt
00:00:09]} 2. a3 {[%clk 00:44:53]} {[%emt 00:00:33]} Nc6 {[%clk 00:45:06]}
{[%emt 00:00:15]} 3. b4 {[%clk 00:43:07]} {[%emt 00:01:57]} cxb4 {[%clk
00:44:14]} {[%emt 00:01:02]} 4. axb4 {[%clk 00:43:10]} {[%emt 00:00:07]} Nxb4
{[%clk 00:44:03]} {[%emt 00:00:21]} 5. c3 {[%clk 00:43:17]} {[%emt 00:00:03]}
Nc6 {[%clk 00:43:55]} {[%emt 00:00:18]} 6. d4 {[%clk 00:43:26]} {[%emt
00:00:01]} d6 {[%clk 00:42:58]} {[%emt 00:01:07]} 7. Bc4 {[%clk 00:41:01]}
{[%emt 00:02:35]} Nf6 {[%clk 00:42:14]} {[%emt 00:00:53]} 8. Qd3 {[%clk
00:38:10]} {[%emt 00:03:01]} d5 {[%clk 00:40:30]} {[%emt 00:01:55]} 9. exd5
{[%clk 00:38:10]} {[%emt 00:00:10]} Nxd5 {[%clk 00:40:24]} {[%emt 00:00:16]} 10.
Nf3 {[%clk 00:36:15]} {[%emt 00:02:04]} e6 {[%clk 00:39:51]} {[%emt 00:00:43]}
11. O-O {[%clk 00:36:01]} {[%emt 00:00:24]} Be7 {[%clk 00:39:49]} {[%emt
00:00:12]} 12. Bb3 {[%clk 00:35:06]} {[%emt 00:01:05]} O-O {[%clk 00:37:26]}
{[%emt 00:02:33]} 13. Bc2 {[%clk 00:33:53]} {[%emt 00:01:23]} g6 {[%clk
00:35:04]} {[%emt 00:02:33]} 14. Bh6 {[%clk 00:33:35]} {[%emt 00:00:28]} Re8
{[%clk 00:34:42]} {[%emt 00:00:30]} 15. Nbd2 {[%clk 00:32:34]} {[%emt
00:01:12]} Bf8 {[%clk 00:33:41]} {[%emt 00:01:11]} 16. Bxf8 {[%clk 00:31:34]}
{[%emt 00:01:10]} Kxf8 {[%clk 00:33:12]} {[%emt 00:00:38]} 17. Ne4 {[%clk
00:30:32]} {[%emt 00:01:13]} e5 {[%clk 00:30:15]} {[%emt 00:03:07]} 18. dxe5
{[%clk 00:26:40]} {[%emt 00:04:02]} Bf5 {[%clk 00:28:30]} {[%emt 00:01:56]} 19.
Rfd1 {[%clk 00:24:14]} {[%emt 00:02:35]} Nf4 {[%clk 00:24:12]} {[%emt
00:04:28]} 20. Qe3 {[%clk 00:23:30]} {[%emt 00:00:54]} Nd5 {[%clk 00:19:00]}
{[%emt 00:05:22]} 21. Qc5+ {[%clk 00:22:17]} {[%emt 00:01:22]} Nce7 {[%clk
00:18:21]} {[%emt 00:00:50]} 22. c4 {[%clk 00:18:27]} {[%emt 00:04:01]} Rc8
{[%clk 00:17:48]} {[%emt 00:00:43]} 23. Qd4 {[%clk 00:15:30]} {[%emt 00:03:05]}
Bxe4 {[%clk 00:14:01]} {[%emt 00:03:58]} 24. Bxe4 {[%clk 00:13:49]} {[%emt
00:01:51]} Nb6 {[%clk 00:12:39]} {[%emt 00:01:32]} 25. Qe3 {[%clk 00:13:37]}
{[%emt 00:00:21]} Qc7 {[%clk 00:11:51]} {[%emt 00:00:59]} 26. Qh6+ {[%clk
00:13:41]} {[%emt 00:00:05]} Kg8 {[%clk 00:11:56]} {[%emt 00:00:05]} 27. Ng5
{[%clk 00:12:59]} {[%emt 00:00:53]} Nc6 {[%clk 00:09:12]} {[%emt 00:02:54]} 28.
Qxh7+ {[%clk 00:12:43]} {[%emt 00:00:25]} Kf8 {[%clk 00:09:19]} {[%emt
00:00:03]} 29. Qh8+ {[%clk 00:12:31]} {[%emt 00:00:21]} Ke7 {[%clk 00:09:25]}
{[%emt 00:00:06]} 30. Qf6+ {[%clk 00:12:39]} {[%emt 00:00:01]} Kf8 {[%clk
00:09:26]} {[%emt 00:00:09]} 31. e6 {[%clk 00:10:52]} {[%emt 00:01:57]} 1-0

[Event "Skol-SM i Schack 2024, Grupp A"]
[Site "Arena Varberg, Kattegattsvagen 26, Varberg, Sweden"]
[Date "2024.10.12"]
[Round "4.11"]
[White "Schriever-Abeln, Marius"]
[Black "Wingh, Walter"]
[Result "1-0"]
[TimeControl "45 minutes + 10 seconds per move from move one."]
[WhiteFideId "1752650"]
[BlackFideId "1767836"]
[WhiteElo "2009"]
[BlackElo "1612"]

1. d4 {[%clk 00:45:18]} {[%emt 00:00:02]} Nf6 {[%clk 00:45:15]} {[%emt
00:00:06]} 2. c4 {[%clk 00:45:26]} {[%emt 00:00:02]} g6 {[%clk 00:45:20]}
{[%emt 00:00:05]} 3. Nc3 {[%clk 00:45:34]} Bg7 {[%clk 00:45:29]} {[%emt
00:00:01]} 4. e4 {[%clk 00:45:43]} {[%emt 00:00:01]} d6 {[%clk 00:45:38]}
{[%emt 00:00:01]} 5. Be2 {[%clk 00:45:51]} {[%emt 00:00:02]} O-O {[%clk
00:45:33]} {[%emt 00:00:15]} 6. Be3 {[%clk 00:45:59]} {[%emt 00:00:02]} e5
{[%clk 00:44:54]} {[%emt 00:00:48]} 7. d5 {[%clk 00:45:42]} {[%emt 00:00:27]}
Ne8 {[%clk 00:44:15]} {[%emt 00:00:49]} 8. g4 {[%clk 00:45:08]} {[%emt
00:00:44]} f5 {[%clk 00:43:44]} {[%emt 00:00:41]} 9. gxf5 {[%clk 00:45:08]}
{[%emt 00:00:11]} gxf5 {[%clk 00:43:49]} {[%emt 00:00:04]} 10. exf5 {[%clk
00:41:33]} {[%emt 00:03:46]} Bxf5 {[%clk 00:43:32]} {[%emt 00:00:26]} 11. Qd2
{[%clk 00:41:24]} {[%emt 00:00:19]} Nf6 {[%clk 00:41:41]} {[%emt 00:02:01]} 12.
f3 {[%clk 00:38:17]} {[%emt 00:03:17]} Bg6 {[%clk 00:31:27]} {[%emt 00:10:24]}
13. Nh3 {[%clk 00:33:51]} {[%emt 00:04:37]} Nh5 {[%clk 00:27:15]} {[%emt
00:04:22]} 14. O-O-O {[%clk 00:31:40]} {[%emt 00:02:21]} Qe7 {[%clk 00:24:44]}
{[%emt 00:02:41]} 15. Ng5 {[%clk 00:28:36]} {[%emt 00:03:13]} Nf4 {[%clk
00:21:04]} {[%emt 00:03:50]} 16. h4 {[%clk 00:26:06]} {[%emt 00:02:40]} Bh5
{[%clk 00:17:18]} {[%emt 00:03:55]} 17. Bxf4 {[%clk 00:20:04]} {[%emt
00:06:13]} Rxf4 {[%clk 00:16:52]} {[%emt 00:00:35]} 18. Rdg1 {[%clk 00:19:33]}
{[%emt 00:00:42]} Kh8 {[%emt 00:03:21]} 19. Kb1 {[%clk 00:16:51]} {[%emt
00:02:50]} Nd7 {[%clk 00:09:10]} {[%emt 00:04:43]} 20. Ne6 {[%clk 00:13:45]}
{[%emt 00:03:16]} Rf7 {[%clk 00:09:18]} {[%emt 00:00:01]} 21. Ne4 {[%clk
00:12:02]} {[%emt 00:01:55]} Bg6 {[%clk 00:08:38]} {[%emt 00:00:50]} 22. h5
{[%clk 00:09:52]} {[%emt 00:02:19]} Bxe4+ {[%clk 00:08:24]} {[%emt 00:00:24]}
23. fxe4 {[%clk 00:10:01]} Nc5 {[%clk 00:06:33]} {[%emt 00:02:02]} 24. h6
{[%clk 00:07:57]} {[%emt 00:02:14]} Nxe6 {[%clk 00:05:39]} {[%emt 00:01:04]} 25.
dxe6 {[%clk 00:07:34]} {[%emt 00:00:33]} Rf6 {[%clk 00:05:08]} {[%emt
00:00:41]} 26. hxg7+ {[%clk 00:07:27]} {[%emt 00:00:18]} Kg8 {[%clk 00:05:16]}
{[%emt 00:00:01]} 27. Bg4 {[%clk 00:06:56]} {[%emt 00:00:41]} Rg6 {[%clk
00:04:26]} {[%emt 00:00:58]} 28. Bf5 {[%clk 00:06:05]} {[%emt 00:01:02]} Rxg7
{[%clk 00:04:33]} {[%emt 00:00:02]} 29. Qh2 {[%clk 00:05:34]} {[%emt 00:00:41]}
Rxg1+ {[%clk 00:04:22]} {[%emt 00:00:23]} 30. Rxg1+ {[%clk 00:05:27]} {[%emt
00:00:16]} Kf8 {[%clk 00:04:28]} {[%emt 00:00:04]} 31. Qh6+ {[%clk 00:05:31]}
{[%emt 00:00:06]} Ke8 {[%clk 00:04:29]} {[%emt 00:00:09]} 32. Rg8+ {[%clk
00:05:38]} {[%emt 00:00:03]} Qf8 {[%clk 00:04:36]} {[%emt 00:00:04]} 33. Qxf8#
{[%clk 00:05:46]} 1-0